{"text_format":"3","workbook":"xlsx","n_sheets":49,"sheets":["modProv","Инструкция","Лог обновления","Титульный","Территории","Дифференциация","Форма 1.0.1","Форма 4.11","Сведения об изменении","Форма 1.0.2","Комментарии","Проверка","modReestr","AllSheetsInThisWorkbook","TEHSHEET","modCheckCyan","modInfo","et_union_hor","et_union_vert","modList00","modList01","modList02","modList03","modList04","modList07","modList09","modHTTP","modfrmRegion","MR_LIST","REESTR_VT","REESTR_VED","modfrmReestrObj","DataOrg","modfrmReestr","modUpdTemplMain","REESTR_ORG","modClassifierValidate","modHyp","modfrmDateChoose","modComm","modThisWorkbook","REESTR_MO","REESTR_MO_FILTER","modfrmReestrMR","modServiceModule","modfrmCheckUpdates","REESTR_DS","REESTR_CHS","REESTR_LINK"],"not_rendered":{"images":22,"macros":1,"defined_names":178,"comments":3},"read":"whole","date_system":"1900"}

{"sheet":"modProv","index":0,"n_rows":0,"n_cols":0,"rows_kept":0,"hidden":true}

{"sheet":"Инструкция","index":1,"n_rows":83,"n_cols":27,"rows_kept":83,"merged":[[1,1,1,6],[2,1,2,2],[4,1,4,24],[6,4,18,23],[20,5,20,12],[20,15,20,23],[21,5,21,12],[21,15,21,23],[22,15,22,22],[34,4,38,23],[39,4,39,23],[40,4,44,23],[45,4,56,23],[57,4,57,20],[58,4,58,6],[58,7,58,23],[59,4,59,6],[60,7,60,23],[69,4,69,19],[70,4,70,19],[71,5,71,23],[72,5,72,23],[73,5,73,23],[74,4,74,23],[75,4,75,23],[76,4,76,23],[77,4,77,23],[78,4,78,23],[80,5,80,18],[82,5,82,23]]}
[{"$nulls":26}," (требуется обновление)"]
[null,{"$f":"\"Код шаблона: \" & GetCode()","v":"Код шаблона: FAS.JKH.OPEN.INFO.LIMIT.WARM"}]
[null,{"$f":"\"Версия \" & Getversion()","v":"Версия 1.0.1"}]
[]
[null,{"$f":"Титульный!E5","v":"Информация о выводе объектов теплоснабжения из эксплуатации и основаниях ограничения, прекращения подачи тепловой энергии потребителям"}]
[]
[{"$nulls":4},"• На рабочем месте должен быть установлен MS Office 2007 SP3, 2010, 2013, 2016 с полной версией MS Excel\n\n• Макросы во время работы должны быть включены (!)\n\n• Для корректной работы отчёта требуется выбрать низкий уровень безопасности\n(В меню MS Excel 2007/2010/2013/2016: Параметры Excel | Центр управления безопасностью | Параметры центра управления безопасностью | Параметры макросов | Включить все макросы | ОК)\n\n• Если Вы работаете в табличном процессоре MS Excel 2007 и выше, то можете использовать для работы формат XLSB (Двоичная книга Excel). При работе в формате XLSB заметно быстрее происходит сохранение файла, а также уменьшается размер по сравнению с форматами XLS и XLSM\n\n• Не рекомендуется снимать защиту с листов и каким-либо образом модифицировать защищаемые формулы и расчётные поля, в противном случае, отчёт будет отклонён системой\n\n• При сохранении не следует выбирать формат XLSX (Книга Excel), так как в указанном формате макросы, необходимые для работы отчёта, безвозвратно удаляются"]
{"$rows_empty":13}
[{"$nulls":4},"A"," - не обязательные для заполнения",{"$nulls":8},"A"," - с формулами и константами"]
[{"$nulls":4},"A"," - обязательные для заполнения",{"$nulls":8},"A"," - с выбором значений до двойному клику"]
{"$rows_empty":12}
[{"$nulls":4},"Если в предложенном Вам списке необходимая организация, МР/МО отсутствуют, обновите реестры с помощью кнопок\n\nВ результате синхронизации с базой данных список организаций (МР/МО) будет заменён актуальным (механизм синхронизации требует подключения к сети Интернет и основан на использовании протокола HTTPS (TCP порт 443))\n\nЕсли после обновления Вам не удалось найти необходимую организацию в списке, обратитесь к ответственному за поддержание реестра Вашего региона."]
{"$rows_empty":10}
[{"$nulls":4},"• При сохранении шаблона осуществляется проверка корректности данных, в том числе на наличие значений в ячейках, обязательных для заполнения\n\n• Если какая-то ячейка не удовлетворяет условию проверки, на лист «Проверка» добавляется гиперссылка на данную ячейку и указывается причина ошибки\n\n• В колонке «Статус» для каждого сообщения возможны 2 значения: ошибка и предупреждение\n\n• При наличии сообщений со статусом «Ошибка» шаблон будет отклонён системой и не будет загружен в хранилище данных, сообщения со статусом «Предупреждение» носят информационный характер, и такой шаблон будет принят системой"]
{"$rows_empty":11}
[{"$nulls":4},"Обратиться за помощью в службу технической поддержки"]
{"$rows_empty":11}
[{"$nulls":4},"Инструкция по загрузке сопроводительных материалов"]
[{"$nulls":4},"Инструкция по работе с отчетной формой"]
{"$rows_empty":7}
[{"$nulls":4},"При наличии подключения к Интернет, можно автоматически проверять наличие доступных обновлений. Выберите способ оповещения о наличии обновлений для отчёта:"]
[]
[{"$nulls":5},"проверять доступные обновления (рекомендуется)",{"$nulls":20},"y"]
[]
[{"$nulls":5},"никогда не проверять наличие обновлений (не рекомендуется)"]

{"sheet":"Лог обновления","index":2,"n_rows":11,"n_cols":3,"rows_kept":11,"hidden":true}
["Дата/Время","Сообщение","Статус"]
["2019-01-09T09:43:31","Проверка доступных обновлений...","Информация"]
["2019-01-09T09:43:32","Нет доступных обновлений для отчёта с кодом FAS.JKH.OPEN.INFO.LIMIT.WARM!","Информация"]
["2019-01-09T09:43:43","Проверка доступных обновлений...","Информация"]
["2019-01-09T09:43:44","Нет доступных обновлений для отчёта с кодом FAS.JKH.OPEN.INFO.LIMIT.WARM!","Информация"]
["2019-01-09T09:44:05","Проверка доступных обновлений...","Информация"]
["2019-01-09T09:44:06","Нет доступных обновлений для отчёта с кодом FAS.JKH.OPEN.INFO.LIMIT.WARM!","Информация"]
["2019-01-09T09:46:50","Проверка доступных обновлений...","Информация"]
["2019-01-09T09:46:51","Нет доступных обновлений для отчёта с кодом FAS.JKH.OPEN.INFO.LIMIT.WARM!","Информация"]
["2019-01-09T14:07:58","Проверка доступных обновлений...","Информация"]
["2019-01-09T14:07:59","Нет доступных обновлений для отчёта с кодом FAS.JKH.OPEN.INFO.LIMIT.WARM!","Информация"]

{"sheet":"Титульный","index":3,"n_rows":45,"n_cols":6,"rows_kept":45,"merged":[[4,4,4,5],[44,4,44,5]]}
[{"$nulls":5},30919929]
[]
[]
[{"$nulls":5},{"$f":"version","v":"Версия 1.0.1"}]
[{"$nulls":4},"Информация о выводе объектов теплоснабжения из эксплуатации и основаниях ограничения, прекращения подачи тепловой энергии потребителям"]
[]
[{"$nulls":4},"Субъект РФ","Тюменская область"]
[]
[{"$nulls":4},"Публикация2","На сайте регулирующего органа"]
[]
[{"$nulls":4},"Отсутствует Интернет в границах территории МО, где организация осуществляет регулируемые виды деятельности","нет"]
[]
[{"$nulls":4},"Тип отчета","первичное раскрытие информации"]
[{"$nulls":4},"Дата внесения изменений в информацию, подлежащую раскрытию","09.01.2019"]
[]
[{"$nulls":4},"Применяется дифференциация тарифа по централизованным системам теплоснабжения?"]
[{"$nulls":4},"Информация по скольким централизованным системам теплоснабжения будет заполнена в шаблоне?"]
[]
[{"$nulls":5},"Отчетный период"]
[null,null,2018,null,"Год",2018]
[null,null,"IV квартал",null,"Квартал","IV квартал"]
[]
[{"$nulls":4},"Является ли данное юридическое лицо подразделением (филиалом) другой организации","нет"]
[]
[]
[{"$nulls":4},"Наименование организации","АО \"УСТЭК\""]
[{"$nulls":4},"Наименование филиала"]
[{"$nulls":4},"ИНН","7203420973"]
[{"$nulls":4},"КПП","720301001"]
[{"$nulls":4},"Вид деятельности"]
[]
[{"$nulls":4},"Тип теплоснабжающей организации","Единая теплоснабжающая организация"]
[]
[{"$nulls":4},"Почтовый адрес регулируемой организации","625023, Тюменская область, город Тюмень, улица Одесская, дом 5"]
[{"$nulls":4},"Фамилия, имя, отчество руководителя","Перекальский Александр Евгеньевич"]
[]
[{"$nulls":5},"Ответственный за составление формы"]
[{"$nulls":4},"Фамилия, имя, отчество","Солянников Глеб Игоревич"]
[{"$nulls":4},"Должность","инженер 1 категории ТО ПТУ"]
[{"$nulls":4},"(код) номер телефона","8(3452)289732"]
[{"$nulls":4},"e-mail","solyannikovgi@AO-USTEK.RU"]
[]
[]
[]
[{"$nulls":4},"В соответствии с пунктом 33.12 Постановления Правительства РФ от 5 июля 2013 г. № 570 \"О стандартах раскрытия информации теплоснабжающими организациями, теплосетевыми организациями и органами регулирования\" теплоснабжающей организацией и теплосетевой организацией в ценовых зонах теплоснабжения информация категории \"о наличии (об отсутствии) технической возможности подключения (технологического присоединения) к системе теплоснабжения, а также о регистрации и ходе реализации заявок на подключение (технологическое присоединение) к системе теплоснабжения\" раскрытию не подлежит"]

{"sheet":"Территории","index":4,"n_rows":17,"n_cols":18,"rows_kept":17,"merged":[[3,3,3,7],[5,3,5,4],[5,5,5,6],[7,3,7,4],[7,5,7,7],[7,8,7,11],[8,5,8,6],[8,8,8,9],[9,5,9,6],[9,8,9,9],[11,2,15,2],[11,3,15,3],[11,4,15,4],[12,5,14,5],[12,6,14,6],[12,7,14,7]]}
[{"$nulls":10},"МО","ОКТМО","МР"]
[]
[]
[{"$nulls":3},"Перечень муниципальных районов и муниципальных образований (территорий действия тарифа)"]
[]
[{"$nulls":5},"да"]
[]
[{"$nulls":3},"Территория действия тарифа",null,"Муниципальный район",null,null,"Муниципальное образование"]
[{"$nulls":3},"№ п/п","Наименование","№ п/п",null,"Наименование","№ п/п",null,"Наименование","ОКТМО"]
[{"$nulls":3},"1","2","3",null,"4","5",null,"6","7"]
[{"$nulls":3},0,null,"",null,null,"",{"$nulls":3},"размерженный МР",null,null,"флаг используемости территории на листе Перечень тарифов","копия территорий","МР (ОКТМО)"]
[null,"auto",null,1,"город Тюмень, город Тюмень (71701000);","",0,null,"","0",null,null,{"$f":"mergeValue(H12)","v":0},null,null,{"$f":"IF(ISERROR(MATCH(MID(Q12,1,250),MID(note_ter,1,250),0)),\"n\",\"y\")","v":"n"},"город Тюмень, город Тюмень (71701000);",{"$f":"K12&\"(\"&L12&\")\"","v":"()"}]
[null,"auto",{"$nulls":3},"",1,"город Тюмень","","0",null,null,{"$f":"mergeValue(H13)","v":"город Тюмень"},{"$nulls":4},{"$f":"K13&\"(\"&L13&\")\"","v":"()"}]
[null,"auto",{"$nulls":6},"",1,"город Тюмень","71701000",{"$f":"mergeValue(H14)","v":"город Тюмень"},{"$nulls":4},{"$f":"K14&\" (\"&L14&\")\"","v":"город Тюмень (71701000)"}]
[{"$nulls":8},"",null,""]
[{"$nulls":5},"","","",""]
[null,"man",null,null,"","",null,null,"",{"$nulls":7},"Добавить территорию действия тарифа"]

{"sheet":"Дифференциация","index":5,"n_rows":26,"n_cols":26,"rows_kept":26,"merged":[[3,3,3,8],[4,3,4,8],[5,0,6,5],[7,1,7,3],[7,4,7,5],[8,1,8,3],[8,4,8,5],[9,1,9,3],[9,4,9,5],[10,1,10,3],[10,4,10,5],[11,1,11,3],[12,1,12,3],[13,1,13,3],[17,0,18,0],[17,3,17,4],[17,5,17,8],[17,9,17,12],[18,6,18,7],[18,10,18,11],[19,6,19,7],[19,10,19,11],[21,3,23,3],[21,4,23,4],[21,5,23,5],[21,6,22,6],[21,7,22,7],[21,8,22,8],[21,9,22,9],[24,2,25,2]]}
[]
[]
[]
[{"$nulls":3},{"$f":"Титульный!E5","v":"Информация о выводе объектов теплоснабжения из эксплуатации и основаниях ограничения, прекращения подачи тепловой энергии потребителям"}]
[{"$nulls":3},{"$f":"IF(org=0,\"Не определено\",org)","v":"АО \"УСТЭК\""}]
{"$rows_empty":12}
[{"$nulls":3},"Вид деятельности",null,"Дифференциация по территориям оказания услуг",{"$nulls":3},"Дифференциация по централизованным системам коммунальной инфраструктуры"]
[{"$nulls":3},"№ п/п","Наименование","да/нет","№ п/п",null,"Наименование","да/нет","№ п/п",null,"Наименование"]
[{"$nulls":3},"1","2","3","4",null,"5","6","7",null,"8"]
[]
[{"$nulls":3},"1","Производство тепловой энергии. Некомбинированная выработка; Производство. Теплоноситель; Передача. Тепловая энергия; Передача. Теплоноситель; Сбыт. Тепловая энергия; Сбыт. Теплоноситель; Подключение (технологическое присоединение) к системе теплоснабжения","нет",null,1,null,"нет","","1","",{"$nulls":10},"4190064;4190067;4190068;4190069;4190070;4190071;4190072","a",1705000]
[{"$nulls":10},"",null,""]
[{"$nulls":8},"",null,""]
[{"$nulls":4},"",{"$nulls":5},""]
[{"$nulls":10},""]

{"sheet":"Форма 1.0.1","index":6,"n_rows":20,"n_cols":7,"rows_kept":20,"merged":[[4,3,4,6],[5,3,5,6],[7,3,7,6],[8,3,8,5],[8,6,9,6],[19,4,19,5]]}
[{"$nulls":6},4]
[]
[]
[]
[{"$nulls":3},"Форма 1.0.1 Основные параметры раскрываемой информации 1"]
[{"$nulls":3},{"$f":"IF(org=0,\"Не определено\",org)","v":"АО \"УСТЭК\""}]
[]
[null,null,22,"Форма 1.0.1"]
[{"$nulls":3},"Параметры формы",null,null,"Описание параметров формы"]
[{"$nulls":3},"№ п/п","Наименование параметра","Информация"]
[{"$nulls":3},"1",2,3,4]
[{"$nulls":3},1,"Дата заполнения/внесения изменений",{"$f":"IF(form_up_date=\"\",\"\",form_up_date)","v":"09.01.2019"},"Указывается календарная дата первичного заполнения или внесения изменений в форму в виде «ДД.ММ.ГГГГ»."]
[{"$nulls":3},"2.1","Наименование централизованной системы коммунальной инфраструктуры","наименование отсутствует","Указывается наименование централизованной системы холодного водоснабжения/горячего водоснабжения/водоотведения/теплоснабжения, к которой относится размещаемая информация.\nВ случае наличия нескольких централизованных систем коммунальной инфраструктуры, информация по каждой из них указывается в отдельной строке. "]
[{"$nulls":3},"3.1","Наименование регулируемого вида деятельности","Производство тепловой энергии. Некомбинированная выработка; Производство. Теплоноситель; Передача. Тепловая энергия; Передача. Теплоноситель; Сбыт. Тепловая энергия; Сбыт. Теплоноситель; Подключение (технологическое присоединение) к системе теплоснабжения","Указывается наименование вида регулируемой деятельности."]
[{"$nulls":3},"4.1","Территория оказания услуги по регулируемому виду деятельности","x"]
[{"$nulls":3},{"$f":"D15&\".1\"","v":"4.1.1"},"Субъект РФ",{"$f":"IF(region_name=\"\",\"\",region_name)","v":"Тюменская область"},"Указывается наименование субъекта Российской Федерации"]
[{"$nulls":3},"4.1.1.1","муниципальный район","город Тюмень","Указывается наименование муниципального района, на территории которого организация оказывает услуги по регулируемому виду деятельности."]
[{"$nulls":3},"4.1.1.1.1","муниципальное образование","город Тюмень (71701000)","Указывается наименование и код муниципального района, муниципального образования в соответствии с Общероссийским классификатором территорий муниципальных образований (далее - ОКТМО), входящего в муниципальный район, на территории которого организация оказывает услуги по регулируемому виду деятельности.\nВ случае оказания услуг по регулируемому виду деятельности на территории нескольких муниципальных районов (муниципальных образований) данные по каждому их них указываются в отдельной строке."]
[]
[{"$nulls":4},"  1 Информация по данной форме публикуется при раскрытии информации по каждой из форм."]

{"sheet":"Форма 4.11","index":7,"n_rows":42,"n_cols":9,"rows_kept":42,"merged":[[2,1,3,1],[2,2,3,2],[5,1,6,1],[5,2,6,2],[8,1,10,1],[8,2,10,2],[12,1,13,1],[12,2,13,2],[21,3,21,6],[22,3,22,6],[24,3,25,3],[24,4,25,4],[24,5,25,5],[24,6,24,7],[24,8,25,8],[32,1,34,1],[32,2,34,2],[37,1,38,1],[37,2,38,2],[39,1,40,1],[39,2,40,2]]}
[{"$nulls":6},4]
[]
[{"$nulls":3},{"$f":"B3 & \".1\"","v":".1"},"Наименование выведенного источника тепловой энергии","x",null,null,"В случае вывода из эксплуатации нескольких источников тепловой энергии информация по каждому из них указывается в отдельно."]
[{"$nulls":3},{"$f":"B3 & \".2\"","v":".2"},"Дата вывода","x",null,null,"Дата вывода указывается в виде «ДД.ММ.ГГГГ»."]
[]
[{"$nulls":3},{"$f":"B6 & \".1\"","v":".1"},"Наименование тепловой сети","x",null,null,"В случае вывода из эксплуатации нескольких тепловых сетей информация по каждой из них указывается в отдельно."]
[{"$nulls":3},{"$f":"B6 & \".2\"","v":".2"},"Дата вывода","x",null,null,"Дата вывода указывается в виде «ДД.ММ.ГГГГ»."]
[]
[{"$nulls":3},{"$f":"B9 & \".1\"","v":".1"},"Описание ограничения подачи тепловой энергии потребителям","x","",""]
[{"$nulls":3},{"$f":"B9 & \".2\"","v":".2"},"Дата начала ограничения","x","","","Дата начала ограничения указывается в виде «ДД.ММ.ГГГГ»."]
[{"$nulls":3},{"$f":"B9 & \".3\"","v":".3"},"Дата завершения ограничения","x","","","Дата завершения ограничения указывается в виде «ДД.ММ.ГГГГ»."]
[]
[{"$nulls":3},{"$f":"B13 & \".1\"","v":".1"},"Описание прекращения режима потребления","x","","","В колонке «Ссылка на документ» указывается материал в виде ссылки на документ, обосновывающий прекращение подачи тепловой энергии потребителям, предварительно загруженный в хранилище данных ФГИС ЕИАС."]
[{"$nulls":3},{"$f":"B13 & \".2\"","v":".2"},"Дата прекращения","x","","","Дата прекращения указывается в виде «ДД.ММ.ГГГГ»."]
{"$rows_empty":7}
[{"$nulls":3},{"$f":"Титульный!E5","v":"Информация о выводе объектов теплоснабжения из эксплуатации и основаниях ограничения, прекращения подачи тепловой энергии потребителям"}]
[{"$nulls":3},{"$f":"IF(org=0,\"Не определено\",org)","v":"АО \"УСТЭК\""}]
[{"$nulls":6},22]
[{"$nulls":3},"№ п/п","Наименование параметра","Единица измерения","Вид деятельности:\r\n  - Производство тепловой энергии. Некомбинированная выработка; Производство. Теплоноситель; Передача. Тепловая энергия; Передача. Теплоноситель; Сбыт. Тепловая энергия; Сбыт. Теплоноситель; Подключение (технологическое присоединение) к системе теплоснабжения\r\n\r\nТерритория оказания услуг:\r\n  - без дифференциации\r\n\r\nЦентрализованная система теплоснабжения:\r\n  - наименование отсутствует",null,"Описание параметров формы"]
[{"$nulls":6},"Информация","Ссылка на документ"]
[{"$nulls":3},"1","2","3",{"$f":"G1&\".1\"","v":"4.1"}]
[null,"1.0",null,1,"Сведения о выводе источников тепловой энергии из эксплуатации","x","x","x"]
[{"$nulls":4},"Добавить источник тепловой энергии"]
[null,"2.0",null,2,"Сведения о выводе тепловых сетей из эксплуатации","x","x","x"]
[{"$nulls":4},"Добавить тепловую сеть"]
[null,"3.0",null,3,"Сведения об основаниях ограничения подачи тепловой энергии тепловой энергии","x","Осуществлялось","x","В случае, если ограничения подачи тепловой энергии тепловой энергии не происходили, в колонке «Информация» указывается «Не осуществлялось».\nУказывается информация о случаях ограничения подачи тепловой энергии потребителям в случаях, предусмотренных законодательством в сфере теплоснабжения.\nВ неоднократных ограничений подачи потребления тепловой энергии потребителями информация по каждому случаю указывается отдельно."]
[null,"3.1","О",{"$f":"B33 & \".1\"","v":"3.1.1"},"Описание ограничения подачи тепловой энергии потребителям","x","Сведения о потребителях, ограничение подачи тепловой энергии которым, осуществлялось за неисполнение или ненадлежащее исполнение потребителем обязательств по оплате и даты ограничения, указаны в приложении 3.1 ",""]
[{"$nulls":3},{"$f":"B33 & \".2\"","v":"3.1.2"},"Дата начала ограничения","x","01.10.2018","","Дата начала ограничения указывается в виде «ДД.ММ.ГГГГ»."]
[{"$nulls":3},{"$f":"B33 & \".3\"","v":"3.1.3"},"Дата завершения ограничения","x","31.12.2018","","Дата завершения ограничения указывается в виде «ДД.ММ.ГГГГ»."]
[{"$nulls":4},"Добавить ограничение подачи ТЭ"]
[null,"4.0",null,4,"Сведения об основаниях прекращения подачи тепловой энергии потребителям","x","Осуществлялось","x","В случае, если прекращения подачи тепловой энергии потребителям не происходили, в колонке «Информация» указывается «Не осуществлялось».\nУказывается информация о случаях прекращения подачи тепловой энергии потребителям, предусмотренных законодательством в сфере теплоснабжения.\nВ случае нескольких прекращений подачи тепловой энергии потребителям информация по каждому случаю указывается отдельно."]
[null,"4.1","О",{"$f":"B38 & \".1\"","v":"4.1.1"},"Описание прекращения режима потребления","x","Сведения о потребителях, прекращение подачи тепловой энергии которым, осуществлялось за неисполнение или ненадлежащее исполнение потребителем обязательств по оплате и даты, указаны в приложении 4.1","","В колонке «Ссылка на документ» указывается материал в виде ссылки на документ, обосновывающий прекращение подачи тепловой энергии потребителям, предварительно загруженный в хранилище данных ФГИС ЕИАС."]
[{"$nulls":3},{"$f":"B38 & \".2\"","v":"4.1.2"},"Дата прекращения","x","31.12.2018","","Дата прекращения указывается в виде «ДД.ММ.ГГГГ»."]
[null,"4.2","О",{"$f":"B40 & \".1\"","v":"4.2.1"},"Описание прекращения режима потребления","x","Сведения о прекращениях подачи тепловой энергии в связи с возникновением аварийных ситуаций и иных случаях, предусмотренных нормативными правовыми актами РФ или договором теплоснабжения указаны в приложениях 4.2, 4.3, 4.4","","В колонке «Ссылка на документ» указывается материал в виде ссылки на документ, обосновывающий прекращение подачи тепловой энергии потребителям, предварительно загруженный в хранилище данных ФГИС ЕИАС."]
[{"$nulls":3},{"$f":"B40 & \".2\"","v":"4.2.2"},"Дата прекращения","x","31.12.2018","","Дата прекращения указывается в виде «ДД.ММ.ГГГГ»."]
[{"$nulls":4},"Добавить прекращение подачи ТЭ"]

{"sheet":"Сведения об изменении","index":8,"n_rows":14,"n_cols":5,"rows_kept":14,"hidden":true,"merged":[[6,3,6,4],[7,3,7,4]]}
[]
[]
[]
[]
[]
[]
[{"$nulls":3},"Сведения об изменениях в первоначально опубликованной информации"]
[{"$nulls":3},{"$f":"IF(org=0,\"Не определено\",org)","v":"АО \"УСТЭК\""}]
[]
[{"$nulls":3},"№ п/п","Сведения"]
[{"$nulls":3},"1","2"]
[{"$nulls":3},0]
[{"$nulls":3},1]
[{"$nulls":4},"Добавить строку"]

{"sheet":"Форма 1.0.2","index":9,"n_rows":15,"n_cols":13,"rows_kept":15,"hidden":true,"merged":[[4,3,4,9],[7,3,7,9],[7,10,9,10],[8,3,9,3],[8,4,8,5],[8,6,8,9],[11,10,12,10],[14,4,14,9]]}
[]
[]
[]
[]
[{"$nulls":3},"Форма 1.0.2 Информация о публикации в печатных изданиях 2"]
[]
[]
[{"$nulls":3},"Параметры формы",{"$nulls":6},"Описание параметров формы"]
[{"$nulls":3},"№ п/п","Форма публикации",null,"Официальное печатное издание"]
[{"$nulls":4},"Номер","Наименование","Наименование","Номер","Дата выпуска","Ссылка на документ"]
[{"$nulls":3},"1","2","3","4","5","6","7","8"]
["3","",null,"1",{"$nulls":6},"В колонке «Дата выпуска» дата выпуска печатного издания указывается в виде «ДД.ММ.ГГГГ».\nВ колонке «Ссылка на документ» указывается ссылка на отсканированную копию печатного издания, предварительно загруженную в хранилище федеральной государственной информационной системы «Единая информационно-аналитическая система «Федеральный орган регулирования - региональные органы регулирования - субъекты регулирования» (далее – ФГИС ЕИАС), с опубликованной информацией.\nВ случае публикации информации в нескольких печатных изданиях информация по каждому из них указывается в отдельной строке.",null,{"$f":"IF(ISERROR(INDEX(kind_of_nameforms,MATCH(E12,kind_of_forms,0),1)),\"\",INDEX(kind_of_nameforms,MATCH(E12,kind_of_forms,0),1))","v":""}]
[{"$nulls":4},"Добавить строку"]
[]
[{"$nulls":4},"2 В данной форме публикуется информация по каждой из форм раскрытия, данные в которой относятся к муниципальному образованию, в котором отсутствует доступ в информационно-телекоммуникационную сеть «Интернет» (далее – сеть «Интернет»)."]

{"sheet":"Комментарии","index":10,"n_rows":18,"n_cols":8,"rows_kept":18,"merged":[[6,3,6,4],[7,3,7,4]]}
[]
[]
[]
[]
[]
[]
[{"$nulls":3},"Комментарии"]
[{"$nulls":3},{"$f":"IF(org=0,\"Не определено\",org)","v":"АО \"УСТЭК\""}]
[]
[{"$nulls":3},"№ п/п","Комментарий"]
[{"$nulls":3},"1","2"]
[{"$nulls":3},0]
[null,null,"О",1,"Приложение 3.1 Ограничения за неисполнение или ненадлежащее исполнение потребителем обязательств по оплате","","",""]
[null,null,"О",2,"Приложение 4.1 Прекращения за неисполнение или ненадлежащее исполнение потребителем обязательств по оплате","","",""]
[null,null,"О",3,"Приложение 4.2 Прекращения в иных случаях, предусмотренных нормативными правовыми актами РФ или договором теплоснабжения за октябрь","","",""]
[null,null,"О",4,"Приложение 4.3 Прекращения в иных случаях, предусмотренных нормативными правовыми актами РФ или договором теплоснабжения за ноябрь","","",""]
[null,null,"О",5,"Приложение 4.4 Прекращения в иных случаях, предусмотренных нормативными правовыми актами РФ или договором теплоснабжения за декабрь","","",""]
[{"$nulls":4},"Добавить"]

{"sheet":"Проверка","index":11,"n_rows":4,"n_cols":5,"rows_kept":4,"merged":[[1,1,1,4]]}
[]
[null,"Результат проверки"]
[]
[null,"Ссылка1","Ссылка2","Причина","Статус"]

{"sheet":"modReestr","index":12,"n_rows":0,"n_cols":0,"rows_kept":0,"hidden":true}

{"sheet":"AllSheetsInThisWorkbook","index":13,"n_rows":39,"n_cols":2,"rows_kept":39,"hidden":true}
["Расчетные листы","Скрытые листы"]
["Инструкция","modReestr"]
["Лог обновления","AllSheetsInThisWorkbook"]
["Титульный","TEHSHEET"]
["Территории","modCheckCyan"]
["Дифференциация","modInfo"]
["Форма 1.0.1","et_union_hor"]
["Форма 4.11","et_union_vert"]
["Сведения об изменении","modList00"]
["Форма 1.0.2","modList01"]
["Комментарии","modList02"]
["Проверка","modList03"]
[null,"modList04"]
[null,"modList07"]
[null,"modList09"]
[null,"modHTTP"]
[null,"modfrmRegion"]
[null,"MR_LIST"]
[null,"REESTR_VT"]
[null,"REESTR_VED"]
[null,"modfrmReestrObj"]
[null,"DataOrg"]
[null,"modProv"]
[null,"modfrmReestr"]
[null,"modUpdTemplMain"]
[null,"REESTR_ORG"]
[null,"modClassifierValidate"]
[null,"modHyp"]
[null,"modfrmDateChoose"]
[null,"modComm"]
[null,"modThisWorkbook"]
[null,"REESTR_MO"]
[null,"REESTR_MO_FILTER"]
[null,"modfrmReestrMR"]
[null,"modServiceModule"]
[null,"modfrmCheckUpdates"]
[null,"REESTR_DS"]
[null,"REESTR_CHS"]
[null,"REESTR_LINK"]

{"sheet":"TEHSHEET","index":14,"n_rows":87,"n_cols":20,"rows_kept":87,"hidden":true,"merged":[[0,18,0,19]]}
["REGION",null,"year_list","logical","Месяц\n(MONTH)","Квартал\n(QUARTER)","Месяц\n(kind_of_publication)","Единица измерения объема оказываемых услуг ГВС\n/kind_of_unit_GVS/","Вид тарифа\n/list_of_tariff/","mr_id","версия шаблона\n (DocProp_Version)","0.1","Тип отчета\ndata_type","type_org_list",{"$nulls":4},"Перечень форм\n(kind_of_forms)"]
["Алтайский край",null,2013,"да","январь","I квартал","На официальном сайте организации","тыс.куб.м/сутки",null,52,"код шаблона\n(DocProp_TemplateCode)",null,"первичное раскрытие информации","Регулируемая организация",{"$nulls":4},"Форма 1.0.1","Основные параметры раскрываемой информации"]
["Амурская область",null,2014,"нет","февраль","II квартал","На сайте регулирующего органа","Гкал/час","Без дифференциации","sys_id","сфера\n(TSphere)",null,"изменения в раскрытой ранее информации","Единая теплоснабжающая организация",{"$nulls":4},"Форма 4.11",{"$f":"Титульный!E5","v":"Информация о выводе объектов теплоснабжения из эксплуатации и основаниях ограничения, прекращения подачи тепловой энергии потребителям"}]
["Архангельская область",null,2015,null,"март","III квартал",null,"куб.м/час",null,104,"сфера(латиница)\n(TSphere_trans)",null,null,"Теплоснабжающая организация в ценовой зоне теплоснабжения"]
["Астраханская область",null,2016,null,"апрель","IV квартал",{"$nulls":4},"сфера расширено\n(TSphere_full)",null,null,"Теплосетевая организация в ценовой зоне теплоснабжения"]
["Белгородская область",null,2017,null,"май"]
["Брянская область",null,2018,null,"июнь"]
["Владимирская область",null,2019,null,"июль",{"$nulls":5},"true"]
["Волгоградская область",null,2020,null,"август"]
["Вологодская область",{"$nulls":3},"сентябрь"]
["Воронежская область",{"$nulls":3},"октябрь"]
["г.Байконур",{"$nulls":3},"ноябрь"]
["г. Москва",{"$nulls":3},"декабрь"]
["г.Санкт-Петербург"]
["г.Севастополь"]
["Еврейская автономная область",{"$nulls":5},"Текущая дата"]
["Забайкальский край",null,"Организация",{"$f":"IF(f_year = \"\",\"\", IF(LEN(f_quart)=0,\"\",IF(f_quart=\"I квартал\", \"01.01.\"&f_year,IF(f_quart=\"II квартал\",\"01.04.\"&f_year,(IF(f_quart=\"III квартал\", \"01.07.\"&f_year,\"01.10.\"&f_year)))) ))","v":"01.10.2018"},{"$f":"IF(f_year = \"\",\"\", IF(LEN(f_quart)=0,\"\",IF(f_quart=\"I квартал\", \"31.03.\"& f_year,IF(f_quart=\"II квартал\",\"30.06.\"& f_year,(IF(f_quart=\"III квартал\", \"30.09.\"& f_year,\"31.12.\"& f_year)))) ))","v":"31.12.2018"},null,"09.01.2019 12:46:50"]
["Ивановская область"]
["Иркутская область",{"$nulls":5},"Признак изменения данных на листе Доступ к товарам и услугам"]
["Кабардино-Балкарская республика",null,"Виды деятельности",{"$nulls":3},true]
["Калининградская область"]
["Калужская область"]
["Камчатский край"]
["Карачаево-Черкесская республика"]
["Кемеровская область"]
["Кировская область"]
["Костромская область"]
["Краснодарский край"]
["Красноярский край"]
["Курганская область"]
["Курская область"]
["Ленинградская область"]
["Липецкая область"]
["Магаданская область"]
["Московская область"]
["Мурманская область"]
["Ненецкий автономный округ"]
["Нижегородская область"]
["Новгородская область"]
["Новосибирская область"]
["Омская область"]
["Оренбургская область"]
["Орловская область"]
["Пензенская область"]
["Пермский край"]
["Приморский край"]
["Псковская область"]
["Республика Адыгея"]
["Республика Алтай"]
["Республика Башкортостан"]
["Республика Бурятия"]
["Республика Дагестан"]
["Республика Ингушетия"]
["Республика Калмыкия"]
["Республика Карелия"]
["Республика Коми"]
["Республика Крым"]
["Республика Марий Эл"]
["Республика Мордовия"]
["Республика Саха (Якутия)"]
["Республика Северная Осетия-Алания"]
["Республика Татарстан"]
["Республика Тыва"]
["Республика Хакасия"]
["Ростовская область"]
["Рязанская область"]
["Самарская область"]
["Саратовская область"]
["Сахалинская область"]
["Свердловская область"]
["Смоленская область"]
["Ставропольский край"]
["Тамбовская область"]
["Тверская область"]
["Томская область"]
["Тульская область"]
["Тюменская область"]
["Удмуртская республика"]
["Ульяновская область"]
["Хабаровский край"]
["Ханты-Мансийский автономный округ"]
["Челябинская область"]
["Чеченская республика"]
["Чувашская республика"]
["Чукотский автономный округ"]
["Ямало-Ненецкий автономный округ"]
["Ярославская область"]

{"sheet":"modCheckCyan","index":15,"n_rows":9,"n_cols":1,"rows_kept":9,"hidden":true}
[]
[{"$f":"IF('Сведения об изменении'!$E$13=\"\",1,0)","v":1}]
[{"$f":"IF(Дифференциация!$E$22=\"\",1,0)","v":0}]
[{"$f":"IF(Территории!$E$12=\"\",1,0)","v":0}]
[{"$f":"IF('Форма 4.11'!$G$33=\"\",1,0)","v":0}]
[{"$f":"IF('Форма 4.11'!$G$34=\"\",1,0)","v":0}]
[{"$f":"IF('Форма 4.11'!$G$35=\"\",1,0)","v":0}]
[{"$f":"IF('Форма 4.11'!$G$38=\"\",1,0)","v":0}]
[{"$f":"IF('Форма 4.11'!$G$39=\"\",1,0)","v":0}]

{"sheet":"modInfo","index":16,"n_rows":11,"n_cols":2,"rows_kept":11,"hidden":true,"merged":[[0,3,0,10],[1,3,1,10],[2,3,2,10],[3,3,3,10],[4,3,4,10]]}
[null,"Территории"]
[1,"Наименование территории оказания услуг для целей идентификации"]
[2,"Муниципальные районы и муниципальные образования, на территории которых осуществляется оказание услуг"]
[null,"Дифференциация"]
[1,"В случае, если регулируемая организация осуществляет несколько видов деятельности, информация о которых подлежит раскрытию, информация по каждому виду деятельности раскрывается отдельно."]
[2,"Поле заполняется выбором значений из списка. Если значений для выбора нет - убедитесь, что лист \"Территории\" заполнен."]
[3,"Условное наименование централизованной системы коммунальной инфраструктуры для целей идентификации."]
[4,"В случае, если регулируемыми организациями оказываются услуги по нескольким технологически не связанным между собой  централизованным системам коммунальной инфраструктуры и если в отношении указанных централизованных систем устанавливаются различные тарифы, то информация раскрывается отдельно по каждой централизованной системе коммунальной инфраструктуры."]
[null,"Сведения об изменении"]
[1,"Лист заполняется в случае, если на Титульном листе в поле \"Тип отчета\" выбрано значение «Изменения в раскрытой ранее информации»."]
[null,"Нет доступных обновлений, версия отчёта актуальна"]

{"sheet":"et_union_hor","index":17,"n_rows":60,"n_cols":26,"rows_kept":60,"hidden":true,"merged":[[14,2,15,2],[14,3,15,3],[14,4,15,4],[19,2,20,2],[19,5,20,5],[19,6,20,6],[19,7,20,7],[28,3,30,3],[28,4,30,4],[28,5,30,5],[28,6,29,6],[28,7,29,7],[28,8,29,8],[28,9,29,9],[34,6,35,6],[34,7,35,7],[34,8,35,8],[34,9,35,9],[49,3,49,6],[50,3,50,5],[50,6,51,6]]}
[]
[]
["et_Comm"]
[]
[]
[]
["et_List04"]
[]
[]
[]
[]
[]
["et_List09_0"]
[]
[null,"auto",null,1,null,null,0,null,null,"0",null,null,{"$f":"mergeValue(H15)","v":0},null,null,{"$f":"IF(ISERROR(MATCH(MID(Q15,1,250),MID(note_ter,1,250),0)),\"n\",\"y\")","v":"y"},null,{"$f":"K15&\"(\"&L15&\")\"","v":"()"}]
[{"$nulls":7},"Добавить МР"]
[]
["et_List09_1"]
[]
[null,"auto",{"$nulls":4},0,null,null,"0",null,null,{"$f":"mergeValue(H20)","v":0},{"$nulls":4},{"$f":"K20&\"(\"&L20&\")\"","v":"()"}]
[{"$nulls":10},"Добавить МО"]
[]
["et_List09_2"]
[]
[null,"auto",{"$nulls":7},0,null,null,{"$f":"mergeValue(H25)","v":0},{"$nulls":4},{"$f":"K25&\" (\"&L25&\")\"","v":" ()"}]
[]
["et_List07_1"]
[]
[{"$nulls":3},"1",null,"нет",null,1,null,"нет",null,"1",{"$nulls":12},"a",1705000]
[{"$nulls":12},"Добавить централизованную систему коммунальной инфраструктуры"]
[{"$nulls":8},"Добавить описание территории оказания услуг"]
[]
["et_List07_4"]
[]
[{"$nulls":7},1,null,"нет",null,"1",{"$nulls":12},"a",1705000]
[{"$nulls":12},"Добавить централизованную систему коммунальной инфраструктуры"]
[]
["et_List07_5"]
[]
[{"$nulls":11},"1",{"$nulls":12},"a",1705000]
[]
[]
["et_List03"]
[]
["3","",{"$nulls":10},{"$f":"IF(ISERROR(INDEX(kind_of_nameforms,MATCH(E45,kind_of_forms,0),1)),\"\",INDEX(kind_of_nameforms,MATCH(E45,kind_of_forms,0),1))","v":""}]
[]
["et_List02_st","et_List02_ter","et_List02_mr","et_List02_mo"]
[]
[]
[{"$nulls":3},"Форма 1.0.1"]
[{"$nulls":3},"Параметры формы",null,null,"Описание параметров формы"]
[{"$nulls":3},"№ п/п","Наименование параметра","Информация"]
[{"$nulls":3},"1",2,3,4]
[{"$nulls":3},1,"Дата заполнения/внесения изменений",{"$f":"IF(form_up_date=\"\",\"\",form_up_date)","v":"09.01.2019"},"Указывается календарная дата первичного заполнения или внесения изменений в форму в виде «ДД.ММ.ГГГГ»."]
[{"$nulls":3},"2.1","Наименование централизованной системы коммунальной инфраструктуры",null,"Указывается наименование централизованной системы холодного водоснабжения/горячего водоснабжения/водоотведения/теплоснабжения, к которой относится размещаемая информация.\nВ случае наличия нескольких централизованных систем коммунальной инфраструктуры, информация по каждой из них указывается в отдельной строке. "]
[{"$nulls":3},"3.1","Наименование регулируемого вида деятельности",null,"Указывается наименование вида регулируемой деятельности."]
[{"$nulls":3},"4.1","Территория оказания услуги по регулируемому виду деятельности","x"]
[{"$nulls":3},{"$f":"D57&\".1\"","v":"4.1.1"},"Субъект РФ",{"$f":"IF(region_name=\"\",\"\",region_name)","v":"Тюменская область"},"Указывается наименование субъекта Российской Федерации"]
[{"$nulls":3},"4.1.1.1","муниципальный район",null,"Указывается наименование муниципального района, на территории которого организация оказывает услуги по регулируемому виду деятельности."]
[{"$nulls":3},"4.1.1.1.1","муниципальное образование",null,"Указывается наименование и код муниципального района, муниципального образования в соответствии с Общероссийским классификатором территорий муниципальных образований (далее - ОКТМО), входящего в муниципальный район, на территории которого организация оказывает услуги по регулируемому виду деятельности.\nВ случае оказания услуг по регулируемому виду деятельности на территории нескольких муниципальных районов (муниципальных образований) данные по каждому их них указываются в отдельной строке."]

{"sheet":"et_union_vert","index":18,"n_rows":0,"n_cols":0,"rows_kept":0,"hidden":true}

{"sheet":"modList00","index":19,"n_rows":0,"n_cols":0,"rows_kept":0,"hidden":true}

{"sheet":"modList01","index":20,"n_rows":0,"n_cols":0,"rows_kept":0,"hidden":true}

{"sheet":"modList02","index":21,"n_rows":0,"n_cols":0,"rows_kept":0,"hidden":true}

{"sheet":"modList03","index":22,"n_rows":0,"n_cols":0,"rows_kept":0,"hidden":true}

{"sheet":"modList04","index":23,"n_rows":0,"n_cols":0,"rows_kept":0,"hidden":true}

{"sheet":"modList07","index":24,"n_rows":0,"n_cols":0,"rows_kept":0,"hidden":true,"merged":[[5,0,6,1],[17,0,18,0]]}

{"sheet":"modList09","index":25,"n_rows":0,"n_cols":0,"rows_kept":0,"hidden":true}

{"sheet":"modHTTP","index":26,"n_rows":0,"n_cols":0,"rows_kept":0,"hidden":true}

{"sheet":"modfrmRegion","index":27,"n_rows":0,"n_cols":0,"rows_kept":0,"hidden":true}

{"sheet":"MR_LIST","index":28,"n_rows":0,"n_cols":0,"rows_kept":0,"hidden":true}

{"sheet":"REESTR_VT","index":29,"n_rows":0,"n_cols":0,"rows_kept":0,"hidden":true}

{"sheet":"REESTR_VED","index":30,"n_rows":11,"n_cols":2,"rows_kept":11,"hidden":true}
["ID_TARIFF_NAME","VED_NAME"]
[4190064,"Производство тепловой энергии. Некомбинированная выработка"]
[4190065,"Производство тепловой энергии. Комбинированная выработка с уст. мощностью производства электрической энергии менее 25 МВт"]
[4190066,"Производство тепловой энергии. Комбинированная выработка с уст. мощностью производства электрической энергии 25 МВт и более"]
[4190067,"Производство. Теплоноситель"]
[4190068,"Передача. Тепловая энергия"]
[4190069,"Передача. Теплоноситель"]
[4190070,"Сбыт. Тепловая энергия"]
[4190071,"Сбыт. Теплоноситель"]
[4190072,"Подключение (технологическое присоединение) к системе теплоснабжения"]
[4190073,"Поддержание резервной тепловой мощности при отсутствии потребления тепловой энергии"]

{"sheet":"modfrmReestrObj","index":31,"n_rows":0,"n_cols":0,"rows_kept":0,"hidden":true}

{"sheet":"DataOrg","index":32,"n_rows":0,"n_cols":0,"rows_kept":0,"hidden":true}

{"sheet":"modfrmReestr","index":33,"n_rows":0,"n_cols":0,"rows_kept":0,"hidden":true}

{"sheet":"modUpdTemplMain","index":34,"n_rows":0,"n_cols":0,"rows_kept":0,"hidden":true}

{"sheet":"REESTR_ORG","index":35,"n_rows":127,"n_cols":10,"rows_kept":127,"hidden":true}
["№","REGION_ID","REGION_NAME","RST_ORG_ID","ORG_NAME","INN_NAME","KPP_NAME","ORG_START_DATE","ORG_END_DATE"]
[1,"2645","Тюменская область","26320038","АО \"Аэропорт Рощино\"","7204660086","720301001",null,null,"WARM"]
[2,"2645","Тюменская область","31077487","АО \"БЕРЕЗКАГАЗ ЮГРА\"","8601036768","860101001","31-10-2008 00:00:00",null,"WARM"]
[3,"2645","Тюменская область","26360435","АО \"ПРОДО Тюменский бройлер\"","7224005872","722401001",null,null,"WARM"]
[4,"2645","Тюменская область","26505193","АО \"Сибнефтемаш\"","7224009228","722450001",null,null,"WARM"]
[5,"2645","Тюменская область","26360369","АО \"Тюменский комбинат хлебопродуктов\"","7204003683","720301001",null,null,"WARM"]
[6,"2645","Тюменская область","26776132","АО \"Тюменский электромеханический завод\"","7204003108","720301001",null,null,"WARM"]
[7,"2645","Тюменская область","30919929","АО \"УСТЭК\"","7203420973","720301001","01-06-2017 00:00:00",null,"WARM"]
[8,"2645","Тюменская область","26800381","АО \"Уральская теплосетевая компания\"","7203203418","720301001",null,null,"WARM"]
[9,"2645","Тюменская область","30794853","АО \"ЮТэйр-Инжиниринг\"","7204002009","720350001",null,null,"WARM"]
[10,"2645","Тюменская область","31077321","АО АРКТИКГАЗ","8904056643","890401001","18-04-2008 00:00:00",null,"WARM"]
[11,"2645","Тюменская область","26360358","АО Нижневартовская ГРЭС","8620018330","862450001",null,null,"WARM"]
[12,"2645","Тюменская область","31172028","АСУСОН ТО \"Детский психоневрологический дом-интернат\"","7224012164","722401001","26-11-2007 00:00:00",null,"WARM"]
[13,"2645","Тюменская область","26360390","АСУСОН ТО \"Ялуторовский психоневрологический интернат\"","7207000070","720701001",null,null,"WARM"]
[14,"2645","Тюменская область","26360450","АУ СОН Тюменской области центр \"Красная гвоздика\"","7224037151","722401001","19-10-2009 00:00:00",null,"WARM"]
[15,"2645","Тюменская область","26375285","Армизонское УМПЖКХ","7209005331","720901001",null,null,"WARM"]
[16,"2645","Тюменская область","26360397","ГАУЗ ТО \"Ялуторовский санаторий-профилакторий \"Светлый\"","7207003603","720701001",null,null,"WARM"]
[17,"2645","Тюменская область","26375269","ГУП \"Ямало-Ненецкий ОРЦ для детей с ограниченными возможностями и детей, состоящих на диспансерном учете \"Большой Тараскуль\"","7204037749","720301001",null,null,"WARM"]
[18,"2645","Тюменская область","26360342","ЗАО \"Автоколонна 1228\"","7202000912","720201001",null,null,"WARM"]
[19,"2645","Тюменская область","26810875","ЗАО \"Завод \"Сантехкомплект\"","7203039648","720301001","18-04-2011 00:00:00",null,"WARM"]
[20,"2645","Тюменская область","31206252","ИП Лоось Татьяна Ивановна","722002784109","отсутствует",null,null,"WARM"]
[21,"2645","Тюменская область","26375326","ИП Фомин Н.П.","721700181300","отсутствует",null,null,"WARM"]
[22,"2645","Тюменская область","26504124","Ишимское РНУ АО \"Транснефть- Западная Сибирь\"","5502020634","720543001",null,null,"WARM"]
[23,"2645","Тюменская область","26433355","Каскаринское МУП ЖКХ","7224011989","722401001",null,null,"WARM"]
[24,"2645","Тюменская область","30852439","МАОУ \"Нижнеаремзянская СОШ\"","7223009345","720601001",null,null,"WARM"]
[25,"2645","Тюменская область","26777765","МАОУ Байкаловская СОШ","7223009384","720601001",null,null,"WARM"]
[26,"2645","Тюменская область","30797628","МАОУ Сетовская СОШ","7206026083","720601001",null,null,"WARM"]
[27,"2645","Тюменская область","26375361","МП \"Демьянское КП\"","7225004624","722501001",null,null,"WARM"]
[28,"2645","Тюменская область","26375310","МП \"Заводоуковское ЖКХ\"","7215009599","721501001",null,null,"WARM"]
[29,"2645","Тюменская область","26375362","МП \"Ивановское КП\"","7225004649","722501001",null,null,"WARM"]
[30,"2645","Тюменская область","28272431","МП \"Строй-проект\" Ялуторовского района","7207008129","720701001",null,null,"WARM"]
[31,"2645","Тюменская область","28003540","МП \"Стройсервис\"","7229008997","722901001",null,null,"WARM"]
[32,"2645","Тюменская область","26433646","МУЖЭП с.Онохино","7224031897","722401001",null,null,"WARM"]
[33,"2645","Тюменская область","26375344","МУП \"Байкаловский ККП\"","7223000825","722301001",null,null,"WARM"]
[34,"2645","Тюменская область","26950305","МУП \"Ембаевское ЖКХ\"","7224043765","722401001","17-09-2010 00:00:00",null,"WARM"]
[35,"2645","Тюменская область","28264544","МУП \"Жилищно-коммунальное хозяйство\" Бердюжского района","7220005046","722001001",null,null,"WARM"]
[36,"2645","Тюменская область","26375273","МУП \"Коммунальщик\"","7205011359","720501001",null,null,"WARM"]
[37,"2645","Тюменская область","26433392","МУП \"Новотарманское ПЖЭРП\"","7224033358","722401001",null,null,"WARM"]
[38,"2645","Тюменская область","26375364","МУП \"РКХ-2\"","7226004881","720701001",null,null,"WARM"]
[39,"2645","Тюменская область","26375296","МУП \"Ремжилстройсервис\"","7212004641","720601001",null,null,"WARM"]
[40,"2645","Тюменская область","28264555","МУП \"Теплосервис\" Бердюжского района","7220005092","722001001",null,null,"WARM"]
[41,"2645","Тюменская область","26360460","МУП \"Юргинское ЖКХ\"","7227262324","722701001",null,null,"WARM"]
[42,"2645","Тюменская область","26375302","МУП ЖКХ \"Вагай\"","7212005349","721201001",null,null,"WARM"]
[43,"2645","Тюменская область","28277194","МУП ЖКХ \"Заречье\"","7207012950","720701001",null,null,"WARM"]
[44,"2645","Тюменская область","26375353","МУП ЖКХ \"Мальковское\"","7224035080","722401001",null,null,"WARM"]
[45,"2645","Тюменская область","26375355","МУП ЖКХ \"Содружество\"","7224038814","722401001",null,null,"WARM"]
[46,"2645","Тюменская область","26375333","МУП ЖКХ Казанского района","7218004920","721801001",null,null,"WARM"]
[47,"2645","Тюменская область","27915687","МУП ЖКХ Тобольского района","7206045872","720601001",null,null,"WARM"]
[48,"2645","Тюменская область","26375345","МУП ЖКХ п.Боровский","7224002712","722401001",null,null,"WARM"]
[49,"2645","Тюменская область","30355572","Муниципальное предприятие \"Туртасское коммунальное предприятие Уватского муниципального района\"","7206042208","720601001",null,null,"WARM"]
[50,"2645","Тюменская область","26360344","ОАО \"Автотеплотехник\"","7202031519","720301001",null,null,"WARM"]
[51,"2645","Тюменская область","28821857","ОАО \"Аэропорт Сургут\"","8602060523","720343001",null,null,"WARM"]
[52,"2645","Тюменская область","28467618","ОАО \"ТДСК\"","7203032191","720301001",null,null,"WARM"]
[53,"2645","Тюменская область","26360351","ОАО \"Тюмень-Дизель\"","7203076015","720301001",null,null,"WARM"]
[54,"2645","Тюменская область","30989030","ООО \"АДК\"","7203217555","720301001",null,null,"WARM"]
[55,"2645","Тюменская область","28882077","ООО \"Абатский жилремстрой\"","7208004222","720501001",null,null,"WARM"]
[56,"2645","Тюменская область","26777702","ООО \"Булашов и Коммунал Сервис\"","7210110348","721001001",null,null,"WARM"]
[57,"2645","Тюменская область","30347280","ООО \"ВОДНИК\"","7203315376","720301001",null,null,"WARM"]
[58,"2645","Тюменская область","26375307","ООО \"Вектор\"","7215001342","721501001",null,null,"WARM"]
[59,"2645","Тюменская область","26576140","ООО \"Газпром трансгаз Сургут\"","8617002073","997250001",null,null,"WARM"]
[60,"2645","Тюменская область","26522800","ООО \"Газпром энерго\" Сургутский филиал","7736186950","860202001","03-10-2005 00:00:00",null,"WARM"]
[61,"2645","Тюменская область","26375306","ООО \"Гарант\"","7215001335","721501001",null,null,"WARM"]
[62,"2645","Тюменская область","28005926","ООО \"Голышмановотеплосервис\"","7220004589","722001001",null,null,"WARM"]
[63,"2645","Тюменская область","26375313","ООО \"Жилсервис\"","7215010139","721501001",null,null,"WARM"]
[64,"2645","Тюменская область","30356010","ООО \"Инвест-силикат-стройсервис\"","7224007051","722401001",null,null,"WARM"]
[65,"2645","Тюменская область","26375294","ООО \"Коммуналсервис\"","7211005547","721101001",null,null,"WARM"]
[66,"2645","Тюменская область","31222419","ООО \"М-ЭНЕРГО\"","7224078976","722401001","12-04-2018 00:00:00",null,"WARM"]
[67,"2645","Тюменская область","30911762","ООО \"МУП Бердюжское ЖКХ\"","7220098763","722001001",null,null,"WARM"]
[68,"2645","Тюменская область","26375349","ООО \"МУП Винзилинское ЖКХ\"","7224030283","722401001",null,null,"WARM"]
[69,"2645","Тюменская область","26375350","ООО \"МУП Московское ЖКХ\"","7224030300","722401001",null,null,"WARM"]
[70,"2645","Тюменская область","27570796","ООО \"Мегаполис-Сервис\"","7202222351","720201001",null,null,"WARM"]
[71,"2645","Тюменская область","31077508","ООО \"Новоуренгойский газохимический комплекс\"","8904006547","890401001","21-08-2002 00:00:00",null,"WARM"]
[72,"2645","Тюменская область","31212504","ООО \"РАССВЕТ-Т\"","7203450939","720301001","01-06-2018 00:00:00",null,"WARM"]
[73,"2645","Тюменская область","28859642","ООО \"Ромист\"","7220005487","722001001",null,null,"WARM"]
[74,"2645","Тюменская область","26375352","ООО \"Ромист\"","7224032562","720901001",null,null,"WARM"]
[75,"2645","Тюменская область","26375276","ООО \"СИБУР Тобольск\"","7206025040","720601001",null,null,"WARM"]
[76,"2645","Тюменская область","30956431","ООО \"СТЭК\"","7203402269","720301001",null,null,"WARM"]
[77,"2645","Тюменская область","28858595","ООО \"Санаторий \"Геолог\"","7224054816","722401001",null,null,"WARM"]
[78,"2645","Тюменская область","26996341","ООО \"Сибгазсервис\"","7214006972","721401001",null,null,"WARM"]
[79,"2645","Тюменская область","28509855","ООО \"Сибириада\"","7205023474","720501001",null,null,"WARM"]
[80,"2645","Тюменская область","31077456","ООО \"Соровскнефть\"","7202170632","720301001","30-11-2007 00:00:00",null,"WARM"]
[81,"2645","Тюменская область","26558197","ООО \"Сорокинские коммунальные системы\"","7222018509","720501001",null,null,"WARM"]
[82,"2645","Тюменская область","26375288","ООО \"Спец Тепло Сервис\"","7210110147","721001001",null,null,"WARM"]
[83,"2645","Тюменская область","31083071","ООО \"ТЕХЭНЕРГО\"","7203429422","720301001",null,null,"WARM"]
[84,"2645","Тюменская область","30958386","ООО \"ТИС\"","7203428884","720301001",null,null,"WARM"]
[85,"2645","Тюменская область","30992089","ООО \"ТЛЦ\"","7203381837","720301001",null,null,"WARM"]
[86,"2645","Тюменская область","30371897","ООО \"ТЮМЕНЬГАЗСЕРВИС\"","7202135194","720301001",null,null,"WARM"]
[87,"2645","Тюменская область","27356445","ООО \"Тавда-Уют\"","7224048202","722401001","20-07-2010 00:00:00",null,"WARM"]
[88,"2645","Тюменская область","30861530","ООО \"Тепло\"","7207018279","720701001",null,null,"WARM"]
[89,"2645","Тюменская область","26375295","ООО \"Теплолюкс\"","7211005554","721101001",null,null,"WARM"]
[90,"2645","Тюменская область","28856888","ООО \"Тепломонтажналадка\"","7206035546","720601001",null,null,"WARM"]
[91,"2645","Тюменская область","26375283","ООО \"Теплосервис с. Абатское\"","7208003980","720501001",null,null,"WARM"]
[92,"2645","Тюменская область","30355588","ООО \"Теплый дом\"","7203333167","720301001",null,null,"WARM"]
[93,"2645","Тюменская область","28830004","ООО \"Техмонтаж\"","7203243280","720301001",null,null,"WARM"]
[94,"2645","Тюменская область","30438563","ООО \"Технолог\"","7203315954","720301001",null,null,"WARM"]
[95,"2645","Тюменская область","30838885","ООО \"Техноцентр\"","7203330328","720301001",null,null,"WARM"]
[96,"2645","Тюменская область","28966662","ООО \"Тобольская ТЭЦ\"","7206048859","720601001",null,null,"WARM"]
[97,"2645","Тюменская область","26381312","ООО \"Тюмень Водоканал\"","7204095194","720301001",null,null,"WARM"]
[98,"2645","Тюменская область","28796899","ООО \"УК \"АРОМАШЕВОГАЗСЕРВИС\"","7220005590","722001001",null,null,"WARM"]
[99,"2645","Тюменская область","30952083","ООО \"УК \"Авангард\"","7203380103","720301001",null,null,"WARM"]
[100,"2645","Тюменская область","26507917","ООО \"Управляющая компания \"Лекс\"","7204031169","720401001",null,null,"WARM"]
[101,"2645","Тюменская область","26643041","ООО \"Управляющая компания \"УПРАВДОМ\"","7202155320","720301001","28-01-2009 00:00:00",null,"WARM"]
[102,"2645","Тюменская область","28451589","ООО \"Холдинговая компания \"Колумб\"","7204104890","720301001",null,null,"WARM"]
[103,"2645","Тюменская область","26434973","ООО \"Червишевское ЖКХ\"","7224041334","722401001",null,null,"WARM"]
[104,"2645","Тюменская область","26375303","ООО ЖКХ \"Викуловское\"","7213004669","721301001",null,null,"WARM"]
[105,"2645","Тюменская область","28150549","ООО НЭП \"Универсал\"","7215001448","721501001",null,null,"WARM"]
[106,"2645","Тюменская область","31077469","ООО РУСГАЗСЕРВИС","8601041542","860101001","07-07-2010 00:00:00",null,"WARM"]
[107,"2645","Тюменская область","26360362","ООО УК \"Тюменьжилсервис\"","7203163934","720301001",null,null,"WARM"]
[108,"2645","Тюменская область","26375346","ПАО \"Птицефабрика \"Боровская\"","7224008030","722401001",null,null,"WARM"]
[109,"2645","Тюменская область","28792615","ПАО \"СУЭНКО\"","7205011944","720301001",null,null,"WARM"]
[110,"2645","Тюменская область","26551662","ПАО \"Фортум\"","7203162698","997150001","01-12-2006 00:00:00",null,"WARM"]
[111,"2645","Тюменская область","26360373","ПАО ДОК \"Красный Октябрь\"","7204660270","720301001",null,null,"WARM"]
[112,"2645","Тюменская область","26360348","ПАО Опытный завод \"ЭЛЕКТРОН\"","7203000866","720301001",null,null,"WARM"]
[113,"2645","Тюменская область","30357202","Публичное акционерное общество \"Тюменские моторостроители\"","7203001556","720301001",null,null,"WARM"]
[114,"2645","Тюменская область","26375620","Свердловская дирекция по тепловодоснабжению - структурное подразделение центральной дирекции по тепловодоснабжению - филиала ОАО \"РЖД\"","7708503727","665931051",null,null,"WARM"]
[115,"2645","Тюменская область","26375342","Сладковское МУП ЖКХ","7221001460","722101001",null,null,"WARM"]
[116,"2645","Тюменская область","28856997","ТМУП \"ТТС\"","7203262893","720301001","30-03-2011 00:00:00",null,"WARM"]
[117,"2645","Тюменская область","26551012","Тобольское УМН АО \"Транснефть-Сибирь\"","7201000726","720602001",null,null,"WARM"]
[118,"2645","Тюменская область","27580677","Тюменское УМН АО \"Транснефть-Сибирь\"","7201000726","720302001",null,null,"WARM"]
[119,"2645","Тюменская область","26375268","ФБУ \"Центр реабилитации ФСС РФ \"Тараскуль\"","7204013642","720301001",null,null,"WARM"]
[120,"2645","Тюменская область","30903763","ФГБУ \"ЦЖКУ\" МИНОБОРОНЫ РОССИИ","7729314745","770101001",null,null,"WARM"]
[121,"2645","Тюменская область","26360391","Федеральное казенное учреждение \"Центр хранения Страхового фонда\"","7207000289","720701001",null,null,"WARM"]
[122,"2645","Тюменская область","26607640","Филиал АО \"Тюменьэнерго\"-\"Тюменские распределительные сети\"","8602060185","860201001",null,null,"WARM"]
[123,"2645","Тюменская область","30914574","Филиал ФГБУ \"ЦЖКУ\" МИНОБОРОНЫ РОССИИ (по ЦВО)","7729314745","667043001",null,null,"WARM"]
[124,"2645","Тюменская область","26375366","Юргинское МПП ЖКХ","7227000960","722701001",null,null,"WARM"]
[125,"2645","Тюменская область","28856006","акционерное общество \"Юграавиа\"","8601053210","860101001",null,null,"WARM"]
[126,"2645","Тюменская область","26423553","филиал \"Сургутская ГРЭС-2\" ПАО \"Юнипро\"","8602067092","860202001","04-03-2004 00:00:00",null,"WARM"]

{"sheet":"modClassifierValidate","index":36,"n_rows":0,"n_cols":0,"rows_kept":0,"hidden":true}

{"sheet":"modHyp","index":37,"n_rows":0,"n_cols":0,"rows_kept":0,"hidden":true}

{"sheet":"modfrmDateChoose","index":38,"n_rows":0,"n_cols":0,"rows_kept":0,"hidden":true}

{"sheet":"modComm","index":39,"n_rows":0,"n_cols":0,"rows_kept":0,"hidden":true}

{"sheet":"modThisWorkbook","index":40,"n_rows":0,"n_cols":0,"rows_kept":0,"hidden":true}

{"sheet":"REESTR_MO","index":41,"n_rows":319,"n_cols":4,"rows_kept":319,"hidden":true}
["№","МР","МО","МО_ОКТМО"]
[1,"Абатский муниципальный район","Абатский муниципальный район","71603000"]
[2,"Абатский муниципальный район","Абатское","71603402"]
[3,"Абатский муниципальный район","Банниковское","71603410"]
[4,"Абатский муниципальный район","Болдыревское","71603415"]
[5,"Абатский муниципальный район","Коневское","71603430"]
[6,"Абатский муниципальный район","Ленинское","71603435"]
[7,"Абатский муниципальный район","Майское","71603440"]
[8,"Абатский муниципальный район","Назаровское","71603445"]
[9,"Абатский муниципальный район","Ощепковское","71603450"]
[10,"Абатский муниципальный район","Партизанское","71603455"]
[11,"Абатский муниципальный район","Тушнолобовское","71603460"]
[12,"Абатский муниципальный район","Шевыринское","71603465"]
[13,"Армизонский муниципальный район","Армизонский муниципальный район","71605000"]
[14,"Армизонский муниципальный район","Армизонское","71605405"]
[15,"Армизонский муниципальный район","Ивановское","71605410"]
[16,"Армизонский муниципальный район","Калмакское","71605415"]
[17,"Армизонский муниципальный район","Капралихинское","71605420"]
[18,"Армизонский муниципальный район","Красноорловское","71605425"]
[19,"Армизонский муниципальный район","Орловское","71605430"]
[20,"Армизонский муниципальный район","Прохоровское","71605435"]
[21,"Армизонский муниципальный район","Раздольское","71605440"]
[22,"Армизонский муниципальный район","Южно-Дубровинское","71605445"]
[23,"Аромашевский муниципальный район","Аромашевский муниципальный район","71607000"]
[24,"Аромашевский муниципальный район","Аромашевское","71607405"]
[25,"Аромашевский муниципальный район","Кармацкое","71607410"]
[26,"Аромашевский муниципальный район","Кротовское","71607415"]
[27,"Аромашевский муниципальный район","Малиновское","71607420"]
[28,"Аромашевский муниципальный район","Малоскарединское","71607425"]
[29,"Аромашевский муниципальный район","Новоберезовское","71607430"]
[30,"Аромашевский муниципальный район","Новопетровское","71607435"]
[31,"Аромашевский муниципальный район","Русаковское","71607440"]
[32,"Аромашевский муниципальный район","Слободчиковское","71607445"]
[33,"Аромашевский муниципальный район","Сорочкинское","71607450"]
[34,"Аромашевский муниципальный район","Юрминское","71607455"]
[35,"Бердюжский муниципальный район","Бердюжский муниципальный район","71610000"]
[36,"Бердюжский муниципальный район","Бердюжское","71610410"]
[37,"Бердюжский муниципальный район","Зарословское","71610420"]
[38,"Бердюжский муниципальный район","Истошинское","71610430"]
[39,"Бердюжский муниципальный район","Мелехинское","71610440"]
[40,"Бердюжский муниципальный район","Окуневское","71610450"]
[41,"Бердюжский муниципальный район","Пегановское","71610460"]
[42,"Бердюжский муниципальный район","Полозаозерское","71610470"]
[43,"Бердюжский муниципальный район","Рямовское","71610474"]
[44,"Бердюжский муниципальный район","Уктузское","71610480"]
[45,"Вагайский муниципальный район","Аксурское","71613404"]
[46,"Вагайский муниципальный район","Бегишевское","71613412"]
[47,"Вагайский муниципальный район","Вагайский муниципальный район","71613000"]
[48,"Вагайский муниципальный район","Вершинское","71613416"]
[49,"Вагайский муниципальный район","Дубровинское","71613428"]
[50,"Вагайский муниципальный район","Зареченское","71613424"]
[51,"Вагайский муниципальный район","Казанское","71613456"]
[52,"Вагайский муниципальный район","Карагайское","71613432"]
[53,"Вагайский муниципальный район","Касьяновское","71613436"]
[54,"Вагайский муниципальный район","Куларовское","71613444"]
[55,"Вагайский муниципальный район","Первовагайское","71613460"]
[56,"Вагайский муниципальный район","Первомайское","71613464"]
[57,"Вагайский муниципальный район","Птицкое","71613468"]
[58,"Вагайский муниципальный район","Супринское","71613472"]
[59,"Вагайский муниципальный район","Тукузское","71613476"]
[60,"Вагайский муниципальный район","Ушаковское","71613480"]
[61,"Вагайский муниципальный район","Фатеевское","71613484"]
[62,"Вагайский муниципальный район","Черноковское","71613488"]
[63,"Вагайский муниципальный район","Шестовское","71613492"]
[64,"Вагайский муниципальный район","Шишкинское","71613408"]
[65,"Викуловский муниципальный район","Балаганское","71615404"]
[66,"Викуловский муниципальный район","Березинское","71615408"]
[67,"Викуловский муниципальный район","Викуловский муниципальный район","71615000"]
[68,"Викуловский муниципальный район","Викуловское","71615412"]
[69,"Викуловский муниципальный район","Ермаковское","71615416"]
[70,"Викуловский муниципальный район","Калининское","71615420"]
[71,"Викуловский муниципальный район","Каргалинское","71615424"]
[72,"Викуловский муниципальный район","Коточиговское","71615428"]
[73,"Викуловский муниципальный район","Нововяткинское","71615432"]
[74,"Викуловский муниципальный район","Озернинское","71615436"]
[75,"Викуловский муниципальный район","Поддубровинское","71615440"]
[76,"Викуловский муниципальный район","Рябовское","71615444"]
[77,"Викуловский муниципальный район","Сартамское","71615448"]
[78,"Викуловский муниципальный район","Скрипкинское","71615452"]
[79,"Викуловский муниципальный район","Чуртанское","71615456"]
[80,"Голышмановский муниципальный район","Бескозобовское","71618405"]
[81,"Голышмановский муниципальный район","Боровлянское","71618410"]
[82,"Голышмановский муниципальный район","Гладиловское","71618415"]
[83,"Голышмановский муниципальный район","Голышманово","71618416"]
[84,"Голышмановский муниципальный район","Голышмановский муниципальный район","71618000"]
[85,"Голышмановский муниципальный район","Голышмановское","71618420"]
[86,"Голышмановский муниципальный район","Евсинское","71618425"]
[87,"Голышмановский муниципальный район","Земляновское","71618430"]
[88,"Голышмановский муниципальный район","Королевское","71618435"]
[89,"Голышмановский муниципальный район","Ламенское","71618440"]
[90,"Голышмановский муниципальный район","Малышенское","71618445"]
[91,"Голышмановский муниципальный район","Медведевское","71618450"]
[92,"Голышмановский муниципальный район","Ражевское","71618455"]
[93,"Голышмановский муниципальный район","Среднечирковское","71618460"]
[94,"Голышмановский муниципальный район","Усть-Ламенское","71618465"]
[95,"Голышмановский муниципальный район","Хмелевское","71618470"]
[96,"Город Ишим","Город Ишим","71705000"]
[97,"Исетский муниципальный район","Архангельское","71624403"]
[98,"Исетский муниципальный район","Бархатовское","71624405"]
[99,"Исетский муниципальный район","Бобылевское","71624410"]
[100,"Исетский муниципальный район","Верхнебешкильское","71624415"]
[101,"Исетский муниципальный район","Верхнеингальское","71624417"]
[102,"Исетский муниципальный район","Денисовское","71624420"]
[103,"Исетский муниципальный район","Исетский муниципальный район","71624000"]
[104,"Исетский муниципальный район","Исетское","71624425"]
[105,"Исетский муниципальный район","Кировское","71624427"]
[106,"Исетский муниципальный район","Коммунаровское","71624430"]
[107,"Исетский муниципальный район","Красновское","71624435"]
[108,"Исетский муниципальный район","Мининское","71624440"]
[109,"Исетский муниципальный район","Рассветовское","71624445"]
[110,"Исетский муниципальный район","Рафайловское","71624450"]
[111,"Исетский муниципальный район","Слободобешкильское","71624455"]
[112,"Исетский муниципальный район","Солобоевское","71624460"]
[113,"Исетский муниципальный район","Шороховское","71624465"]
[114,"Ишимский муниципальный район","Боровское","71626404"]
[115,"Ишимский муниципальный район","Бутусовское","71626408"]
[116,"Ишимский муниципальный район","Второпесьяновское","71626412"]
[117,"Ишимский муниципальный район","Гагаринское","71626416"]
[118,"Ишимский муниципальный район","Десятовское","71626420"]
[119,"Ишимский муниципальный район","Дымковское","71626424"]
[120,"Ишимский муниципальный район","Ишимский муниципальный район","71626000"]
[121,"Ишимский муниципальный район","Карасульское","71626428"]
[122,"Ишимский муниципальный район","Клепиковское","71626432"]
[123,"Ишимский муниципальный район","Ларихинское","71626436"]
[124,"Ишимский муниципальный район","Мизоновское","71626440"]
[125,"Ишимский муниципальный район","Неволинское","71626442"]
[126,"Ишимский муниципальный район","Новолоктинское","71626444"]
[127,"Ишимский муниципальный район","Новотравнинское","71626448"]
[128,"Ишимский муниципальный район","Пахомовское","71626452"]
[129,"Ишимский муниципальный район","Первопесьяновское","71626456"]
[130,"Ишимский муниципальный район","Плешковское","71626460"]
[131,"Ишимский муниципальный район","Прокуткинское","71626464"]
[132,"Ишимский муниципальный район","Равнецкое","71626468"]
[133,"Ишимский муниципальный район","Стрехнинское","71626472"]
[134,"Ишимский муниципальный район","Тоболовское","71626476"]
[135,"Ишимский муниципальный район","Черемшанское","71626484"]
[136,"Ишимский муниципальный район","Шаблыкинское","71626488"]
[137,"Казанский муниципальный район","Афонькинское","71630405"]
[138,"Казанский муниципальный район","Большеченчерское","71630410"]
[139,"Казанский муниципальный район","Большеярковское","71630415"]
[140,"Казанский муниципальный район","Гагарьевское","71630420"]
[141,"Казанский муниципальный район","Дубынское","71630425"]
[142,"Казанский муниципальный район","Ильинское","71630430"]
[143,"Казанский муниципальный район","Казанский муниципальный район","71630000"]
[144,"Казанский муниципальный район","Казанское","71630432"]
[145,"Казанский муниципальный район","Огневское","71630435"]
[146,"Казанский муниципальный район","Пешневское","71630440"]
[147,"Казанский муниципальный район","Смирновское","71630445"]
[148,"Казанский муниципальный район","Челюскинское","71630450"]
[149,"Казанский муниципальный район","Чирковское","71630452"]
[150,"Казанский муниципальный район","Яровское","71630455"]
[151,"Нижнетавдинский муниципальный район","Андрюшинское","71632404"]
[152,"Нижнетавдинский муниципальный район","Антипинское","71632408"]
[153,"Нижнетавдинский муниципальный район","Березовское","71632412"]
[154,"Нижнетавдинский муниципальный район","Бухтальское","71632416"]
[155,"Нижнетавдинский муниципальный район","Велижанское","71632420"]
[156,"Нижнетавдинский муниципальный район","Искинское","71632428"]
[157,"Нижнетавдинский муниципальный район","Канашское","71632432"]
[158,"Нижнетавдинский муниципальный район","Ключевское","71632440"]
[159,"Нижнетавдинский муниципальный район","Миясское","71632448"]
[160,"Нижнетавдинский муниципальный район","Нижнетавдинский муниципальный район","71632000"]
[161,"Нижнетавдинский муниципальный район","Нижнетавдинское","71632450"]
[162,"Нижнетавдинский муниципальный район","Новоникольское","71632452"]
[163,"Нижнетавдинский муниципальный район","Новотроицкое","71632456"]
[164,"Нижнетавдинский муниципальный район","Тавдинское","71632469"]
[165,"Нижнетавдинский муниципальный район","Тарманское","71632472"]
[166,"Нижнетавдинский муниципальный район","Тюневское","71632475"]
[167,"Нижнетавдинский муниципальный район","Черепановское","71632478"]
[168,"Нижнетавдинский муниципальный район","Чугунаевское","71632482"]
[169,"Омутинский муниципальный район","Большекрасноярское","71634411"]
[170,"Омутинский муниципальный район","Вагайское","71634415"]
[171,"Омутинский муниципальный район","Журавлевское","71634422"]
[172,"Омутинский муниципальный район","Окуневское","71634444"]
[173,"Омутинский муниципальный район","Омутинский муниципальный район","71634000"]
[174,"Омутинский муниципальный район","Омутинское","71634448"]
[175,"Омутинский муниципальный район","Ситниковское","71634455"]
[176,"Омутинский муниципальный район","Шабановское","71634466"]
[177,"Омутинский муниципальный район","Южно-Плетневское","71634477"]
[178,"Сладковский муниципальный район","Александровское","71636405"]
[179,"Сладковский муниципальный район","Лопазновское","71636410"]
[180,"Сладковский муниципальный район","Майское","71636415"]
[181,"Сладковский муниципальный район","Маслянское","71636420"]
[182,"Сладковский муниципальный район","Менжинское","71636425"]
[183,"Сладковский муниципальный район","Никулинское","71636430"]
[184,"Сладковский муниципальный район","Новоандреевское","71636435"]
[185,"Сладковский муниципальный район","Сладковский муниципальный район","71636000"]
[186,"Сладковский муниципальный район","Сладковское","71636445"]
[187,"Сладковский муниципальный район","Степновское","71636450"]
[188,"Сладковский муниципальный район","Усовское","71636455"]
[189,"Сорокинский муниципальный район","Александровское","71638410"]
[190,"Сорокинский муниципальный район","Ворсихинское","71638420"]
[191,"Сорокинский муниципальный район","Готопутовское","71638430"]
[192,"Сорокинский муниципальный район","Знаменщиковское","71638440"]
[193,"Сорокинский муниципальный район","Пинигинское","71638470"]
[194,"Сорокинский муниципальный район","Покровское","71638480"]
[195,"Сорокинский муниципальный район","Сорокинский муниципальный район","71638000"]
[196,"Сорокинский муниципальный район","Сорокинское","71638490"]
[197,"Тобольский муниципальный район","Абалакское","71642405"]
[198,"Тобольский муниципальный район","Ачирское","71642407"]
[199,"Тобольский муниципальный район","Байкаловское","71642410"]
[200,"Тобольский муниципальный район","Башковское","71642425"]
[201,"Тобольский муниципальный район","Булашовское","71642415"]
[202,"Тобольский муниципальный район","Верхнеаремзянское","71642420"]
[203,"Тобольский муниципальный район","Ворогушинское","71642430"]
[204,"Тобольский муниципальный район","Дегтяревское","71642435"]
[205,"Тобольский муниципальный район","Ермаковское","71642440"]
[206,"Тобольский муниципальный район","Загваздинское","71642445"]
[207,"Тобольский муниципальный район","Карачинское","71642450"]
[208,"Тобольский муниципальный район","Кутарбитское","71642455"]
[209,"Тобольский муниципальный район","Лайтамакское","71642460"]
[210,"Тобольский муниципальный район","Малозоркальцевское","71642462"]
[211,"Тобольский муниципальный район","Надцынское","71642465"]
[212,"Тобольский муниципальный район","Овсянниковское","71642470"]
[213,"Тобольский муниципальный район","Полуяновское","71642473"]
[214,"Тобольский муниципальный район","Прииртышское","71642475"]
[215,"Тобольский муниципальный район","Санниковское","71642480"]
[216,"Тобольский муниципальный район","Сетовское","71642482"]
[217,"Тобольский муниципальный район","Тобольский муниципальный район","71642000"]
[218,"Тобольский муниципальный район","Ушаровское","71642485"]
[219,"Тобольский муниципальный район","Хмелевское","71642490"]
[220,"Тюменский муниципальный район","Андреевское","71644405"]
[221,"Тюменский муниципальный район","Богандинское","71644410"]
[222,"Тюменский муниципальный район","Борковское","71644415"]
[223,"Тюменский муниципальный район","Горьковское","71644417"]
[224,"Тюменский муниципальный район","Ембаевское","71644420"]
[225,"Тюменский муниципальный район","Каменское","71644425"]
[226,"Тюменский муниципальный район","Каскаринское","71644430"]
[227,"Тюменский муниципальный район","Кулаковское","71644440"]
[228,"Тюменский муниципальный район","Мальковское","71644445"]
[229,"Тюменский муниципальный район","Московское","71644450"]
[230,"Тюменский муниципальный район","Муллашинское","71644451"]
[231,"Тюменский муниципальный район","Наримановское","71644452"]
[232,"Тюменский муниципальный район","Нижнепышминское","71644455"]
[233,"Тюменский муниципальный район","Новотарманское","71644456"]
[234,"Тюменский муниципальный район","Онохинское","71644458"]
[235,"Тюменский муниципальный район","Переваловское","71644460"]
[236,"Тюменский муниципальный район","Салаирское","71644470"]
[237,"Тюменский муниципальный район","Созоновское","71644474"]
[238,"Тюменский муниципальный район","Тюменский муниципальный район","71644000"]
[239,"Тюменский муниципальный район","Успенское","71644475"]
[240,"Тюменский муниципальный район","Червишевское","71644480"]
[241,"Тюменский муниципальный район","Чикчинское","71644485"]
[242,"Тюменский муниципальный район","поселок Боровский","71644412"]
[243,"Тюменский муниципальный район","поселок Винзили","71644416"]
[244,"Уватский муниципальный район","Алымское","71648405"]
[245,"Уватский муниципальный район","Горнослинкинское","71648410"]
[246,"Уватский муниципальный район","Демьянское","71648415"]
[247,"Уватский муниципальный район","Ивановское","71648420"]
[248,"Уватский муниципальный район","Красноярское","71648425"]
[249,"Уватский муниципальный район","Межселенная территория Уватского муниципального района, кроме сельских поселений, включающая д Герасимовка, д Калемьяга, д Нефедова","71648701"]
[250,"Уватский муниципальный район","Осинниковское","71648435"]
[251,"Уватский муниципальный район","Соровое","71648438"]
[252,"Уватский муниципальный район","Тугаловское","71648440"]
[253,"Уватский муниципальный район","Туртасское","71648445"]
[254,"Уватский муниципальный район","Уватский муниципальный район","71648000"]
[255,"Уватский муниципальный район","Уватское","71648450"]
[256,"Уватский муниципальный район","Укинское","71648452"]
[257,"Уватский муниципальный район","Юровское","71648455"]
[258,"Упоровский муниципальный район","Буньковское","71650405"]
[259,"Упоровский муниципальный район","Бызовское","71650410"]
[260,"Упоровский муниципальный район","Видоновское","71650415"]
[261,"Упоровский муниципальный район","Емуртлинское","71650420"]
[262,"Упоровский муниципальный район","Ингалинское","71650425"]
[263,"Упоровский муниципальный район","Коркинское","71650430"]
[264,"Упоровский муниципальный район","Крашенининское","71650435"]
[265,"Упоровский муниципальный район","Липихинское","71650440"]
[266,"Упоровский муниципальный район","Нижнеманайское","71650445"]
[267,"Упоровский муниципальный район","Пятковское","71650450"]
[268,"Упоровский муниципальный район","Скородумское","71650455"]
[269,"Упоровский муниципальный район","Суерское","71650460"]
[270,"Упоровский муниципальный район","Упоровский муниципальный район","71650000"]
[271,"Упоровский муниципальный район","Упоровское","71650465"]
[272,"Упоровский муниципальный район","Чернаковское","71650470"]
[273,"Юргинский муниципальный район","Агаракское","71653405"]
[274,"Юргинский муниципальный район","Бушуевское","71653420"]
[275,"Юргинский муниципальный район","Володинское","71653425"]
[276,"Юргинский муниципальный район","Зоновское","71653430"]
[277,"Юргинский муниципальный район","Лабинское","71653440"]
[278,"Юргинский муниципальный район","Лесное","71653443"]
[279,"Юргинский муниципальный район","Новотаповское","71653447"]
[280,"Юргинский муниципальный район","Северо-Плетневское","71653450"]
[281,"Юргинский муниципальный район","Шипаковское","71653460"]
[282,"Юргинский муниципальный район","Юргинский муниципальный район","71653000"]
[283,"Юргинский муниципальный район","Юргинское","71653465"]
[284,"Ялуторовский муниципальный район","Асланинское","71656405"]
[285,"Ялуторовский муниципальный район","Беркутское","71656410"]
[286,"Ялуторовский муниципальный район","Заводопетровское","71656413"]
[287,"Ялуторовский муниципальный район","Зиновское","71656415"]
[288,"Ялуторовский муниципальный район","Ивановское","71656420"]
[289,"Ялуторовский муниципальный район","Карабашское","71656422"]
[290,"Ялуторовский муниципальный район","Киевское","71656423"]
[291,"Ялуторовский муниципальный район","Коктюльское","71656425"]
[292,"Ялуторовский муниципальный район","Новоатьяловское","71656430"]
[293,"Ялуторовский муниципальный район","Памятнинское","71656435"]
[294,"Ялуторовский муниципальный район","Петелинское","71656440"]
[295,"Ялуторовский муниципальный район","Ревдинское","71656445"]
[296,"Ялуторовский муниципальный район","Сингульское","71656450"]
[297,"Ялуторовский муниципальный район","Старокавдыкское","71656455"]
[298,"Ялуторовский муниципальный район","Хохловское","71656460"]
[299,"Ялуторовский муниципальный район","Ялуторовский муниципальный район","71656000"]
[300,"Ярковский муниципальный район","Аксаринское","71658405"]
[301,"Ярковский муниципальный район","Гилевское","71658410"]
[302,"Ярковский муниципальный район","Дубровинское","71658415"]
[303,"Ярковский муниципальный район","Иевлевское","71658420"]
[304,"Ярковский муниципальный район","Караульноярское","71658425"]
[305,"Ярковский муниципальный район","Маранское","71658430"]
[306,"Ярковский муниципальный район","Новоалександровское","71658435"]
[307,"Ярковский муниципальный район","Плехановское","71658440"]
[308,"Ярковский муниципальный район","Покровское","71658445"]
[309,"Ярковский муниципальный район","Сорокинское","71658450"]
[310,"Ярковский муниципальный район","Староалександровское","71658455"]
[311,"Ярковский муниципальный район","Усальское","71658460"]
[312,"Ярковский муниципальный район","Щетковское","71658465"]
[313,"Ярковский муниципальный район","Ярковский муниципальный район","71658000"]
[314,"Ярковский муниципальный район","Ярковское","71658470"]
[315,"город Заводоуковск","город Заводоуковск","71703000"]
[316,"город Тобольск","город Тобольск","71710000"]
[317,"город Тюмень","город Тюмень","71701000"]
[318,"город Ялуторовск","город Ялуторовск","71715000"]

{"sheet":"REESTR_MO_FILTER","index":42,"n_rows":0,"n_cols":0,"rows_kept":0,"hidden":true}

{"sheet":"modfrmReestrMR","index":43,"n_rows":0,"n_cols":0,"rows_kept":0,"hidden":true}

{"sheet":"modServiceModule","index":44,"n_rows":0,"n_cols":0,"rows_kept":0,"hidden":true}

{"sheet":"modfrmCheckUpdates","index":45,"n_rows":0,"n_cols":0,"rows_kept":0,"hidden":true}

{"sheet":"REESTR_DS","index":46,"n_rows":3,"n_cols":2,"rows_kept":3,"hidden":true}
[]
[]
[null,"город Тюмень, город Тюмень (71701000);"]

{"sheet":"REESTR_CHS","index":47,"n_rows":0,"n_cols":0,"rows_kept":0,"hidden":true}

{"sheet":"REESTR_LINK","index":48,"n_rows":3,"n_cols":3,"rows_kept":3,"hidden":true}
["ID","LINK_NAME","REGION"]
[4189678,"https://portal.eias.ru/Portal/DownloadPage.aspx?type=12&guid=????????-????-????-????-????????????","ALL"]
[4190415,"https://eias.fstrf.ru/disclo/get_file?p_guid=????????-????-????-????-????????????","ALL"]